bitfinex-derivatives/quotes_SOLF0:USTF0_20251108
["timestamp","ask_amount","ask_price","bid_price","bid_amount"]
[1762581204496,0.57,161.07,161.02,3.01]
[1762581204691,4.40780623,161.06,161.02,3.01]
[1762581204888,6.2003,161.1,161.02,3.01]
[1762581205091,4.40778429,161.09,161.02,3.01]
[1762581205299,0.04585685,161.07,161.05,3.01]
[1762581205490,4.40778429,161.06,161.05,3.01]
[1762581205697,0.04361628,161.08,161.05,3.01]
[1762581205900,4.40875061,161.07,161.05,3.01]
[1762581206094,0.04361628,161.08,161.07,3.01]
[1762581207400,4.45494064,161.08,161.07,3.01]
[1762581207700,0.04361628,161.08,161.07,3.01]
[1762581207899,4.45511862,161.08,161.07,3.01]
[1762581209092,0.61,161.07,161.04,0.03932233]
[1762581209297,0.61,161.07,161.04,3.04932233]
[1762581209598,0.04361628,161.08,161.04,3.04932233]
[1762581209799,4.41231801,161.07,161.04,3.04932233]
[1762581210100,0.65361628,161.08,161.04,3.04932233]
[1762581210299,4.41133665,161.07,161.04,3.04932233]
[1762581210503,0.65361628,161.08,161.04,3.04932233]
[1762581210703,4.4117755,161.07,161.05,3.01]
[1762581211000,0.65361628,161.08,161.05,3.01]
[1762581211001,0.04361628,161.08,161.05,3.01]
[1762581213099,0.04361628,161.08,161.07,3.16]
[1762581215896,0.04361628,161.08,161.04,0.03932233]
[1762581216100,5.01815304,161.07,161.04,0.03932233]
[1762581216399,4.41815304,161.06,161.04,3.19932233]
[1762581216695,0.6,161.07,161.04,3.19932233]
[1762581216892,4.41938189,161.06,161.04,3.19932233]
[1762581217196,0.6,161.07,161.04,3.19932233]
[1762581217397,4.419918,161.06,161.04,3.19932233]
[1762581217593,0.04361628,161.08,161.04,3.19932233]
[1762581218501,0.04361628,161.08,161.06,5.5914]
[1762581218707,0.04361628,161.08,161.07,3.16]
[1762581221506,2.828688,161.15,161.07,3.16]
[1762581221507,1.68019183,161.17,161.09,3.16]
[1762581221699,4.30932463,161.16,161.09,3.16]
[1762581221900,4.30932463,161.15,161.09,3.16]
[1762581222107,4.30932463,161.14,161.09,3.16]
[1762581222308,0.6,161.17,161.09,3.16]
[1762581222509,0.6,161.17,161.12,2.89]
[1762581222510,0.04245399,161.15,161.12,2.89]
[1762581222807,4.30890819,161.14,161.12,2.89]
[1762581223007,0.0419138,161.15,161.12,2.89]
[1762581224707,4.9579176,161.14,161.11,0.04277028]
[1762581224907,0.65,161.14,161.11,2.93277028]
[1762581230115,5.5893,161.13,161.11,0.04277028]
[1762581230303,4.95510615,161.12,161.07,2.89]
[1762581230504,0.65,161.12,161.07,2.89]
[1762581230808,5.5889,161.14,161.08,5.5906]
[1762581231005,0.65,161.14,161.09,2.89]
[1762581231506,4.34881265,161.13,161.11,2.89]
[1762581231702,0.69145747,161.14,161.11,2.89]
[1762581234520,4.95397462,161.13,161.1,0.04016833]
[1762581234710,0.65,161.13,161.1,2.93016833]
[1762581241522,0.65,161.12,161.1,0.04016833]
[1762581241924,0.65,161.11,161.1,0.04016833]
[1762581242321,4.95648272,161.12,161.1,0.04016833]
[1762581242519,4.95661571,161.11,161.1,0.04016833]
[1762581242724,4.95661571,161.11,161.04,2.99]
[1762581242725,0.65,161.1,161.04,2.99]
[1762581242927,0.65,161.08,161.04,2.99]
[1762581243732,0.68995929,161.08,161.04,2.99]
[1762581243935,4.95655975,161.07,161.04,2.99]
[1762581244134,0.65,161.07,161.04,2.99]
[1762581244828,0.68995929,161.08,161.04,2.99]
[1762581245929,0.03995929,161.08,161.04,2.99]
[1762581246431,0.03995929,161.08,161.07,2.99]
[1762581246634,0.04376197,161.09,161.07,2.99]
[1762581247235,0.04376197,161.09,161.08,2.99]
[1762581247436,0.65,161.15,161.08,2.99]
[1762581247645,4.31190222,161.14,161.08,2.99]
[1762581247832,4.31190222,161.13,161.08,2.99]
[1762581248133,4.31190222,161.13,161.0,14.2052672]
[1762581248134,4.31190222,161.12,161.09,2.99]
[1762581248438,0.0477742,161.12,161.09,3.02975979]
[1762581249339,4.37484395,161.11,161.09,3.02975979]
[1762581249531,0.0477742,161.12,161.09,3.02975979]
[1762581249733,4.37439548,161.11,161.09,3.02975979]
[1762581249932,0.0477742,161.12,161.09,3.02975979]
[1762581250332,4.37530348,161.11,161.09,3.02975979]
[1762581250535,4.37530348,161.1,161.09,3.02975979]
[1762581251127,1.85736183,161.12,161.09,3.02975979]
[1762581251331,4.37595333,161.11,161.09,3.02975979]
[1762581251639,4.37530057,161.1,161.09,3.02975979]
[1762581251843,1.85736183,161.12,161.09,3.02975979]
[1762581252140,4.37577912,161.11,161.09,3.02975979]
[1762581252440,1.85736183,161.12,161.09,3.02975979]
[1762581252634,4.37577261,161.11,161.09,3.02975979]
[1762581252832,1.85736183,161.12,161.09,3.02975979]
[1762581253035,4.37582928,161.11,161.09,3.02975979]
[1762581253235,2.54736183,161.12,161.09,3.02975979]
[1762581253440,4.37623769,161.11,161.09,3.02975979]
[1762581253642,2.54736183,161.12,161.09,3.02975979]
[1762581253940,4.37626426,161.11,161.09,3.02975979]
[1762581254139,4.37674299,161.1,161.09,3.02975979]
[1762581257846,5.06674299,161.1,161.09,0.03975979]
[1762581259146,6.2808,161.09,161.03,8.5824]
[1762581259340,4.37674299,161.08,161.03,8.5824]
[1762581259541,4.37674299,161.07,161.04,2.99]
[1762581259746,7.40038763,161.09,161.04,2.99]
[1762581259747,2.49958763,161.09,161.04,2.99]
[1762581260045,4.38166893,161.08,161.05,2.99]
[1762581260242,0.04454291,161.08,161.05,2.99]
[1762581260445,0.04454291,161.08,161.05,8.5818]
[1762581260646,0.04454291,161.08,161.06,2.99]
[1762581261941,0.04454291,161.08,161.06,8.5814]
[1762581262140,0.04454291,161.08,161.07,2.99]
[1762581267351,4.42886505,161.08,161.07,2.99]
[1762581267644,0.04454291,161.08,161.07,2.99]
[1762581267950,4.4284534,161.08,161.07,2.99]
[1762581269045,0.04454291,161.08,161.07,2.99]
[1762581274461,4.41389829,161.14,161.1,2.85]
[1762581274659,4.38518815,161.13,161.1,2.85]
[1762581274861,4.38518815,161.12,161.1,2.85]
[1762581275060,4.38518815,161.11,161.1,2.85]
[1762581275454,4.38518815,161.11,161.1,8.44]
[1762581276468,0.04684697,161.12,161.11,2.85]
[1762581277762,0.04684697,161.12,161.1,5.59]
[1762581277763,2.52958763,161.18,161.14,2.85]
[1762581277966,4.38984753,161.17,161.14,2.85]
[1762581278160,4.38984753,161.16,161.14,2.85]
[1762581278359,4.38984753,161.15,161.14,2.85]
[1762581280361,5.10984753,161.15,161.13,0.04733409]
[1762581280564,4.38984753,161.14,161.13,0.04733409]
[1762581280865,5.10984753,161.14,161.13,0.04733409]
[1762581281064,4.38984753,161.14,161.13,0.04733409]
[1762581281263,4.38984753,161.14,161.13,2.89733409]
[1762581281466,5.10984753,161.14,161.13,0.04733409]
[1762581281856,4.38984753,161.14,161.13,0.04733409]
[1762581283260,0.04452307,161.16,161.13,0.04733409]
[1762581283261,0.04452307,161.16,161.13,3.00733409]
[1762581283973,0.04452307,161.16,161.15,2.96]
[1762581284263,4.38728465,161.2,161.15,2.96]
[1762581284463,6.22348592,161.24,161.15,2.96]
[1762581284762,4.38766626,161.23,161.15,2.96]
[1762581284958,4.38766626,161.22,161.15,2.96]
[1762581285160,0.04762386,161.2,161.18,2.96]
[1762581285667,0.04762386,161.2,161.18,8.5471]
[1762581285866,0.04762386,161.2,161.19,2.96]
[1762581289765,82.08958763,161.27,161.22,2.96]
[1762581289971,2.62958763,161.27,161.22,2.96]
[1762581290369,0.82,161.26,161.22,2.96]
[1762581290569,2.62958763,161.27,161.22,2.96]
[1762581290973,0.04722032,161.26,161.24,2.96]
[1762581291270,0.86722032,161.26,161.23,3.0066214]
[1762581292070,0.86722032,161.26,161.23,0.0466214]
[1762581293670,2.62958763,161.24,161.23,0.0466214]
[1762581293972,0.82,161.23,161.2,2.96]
[1762581294371,0.82,161.23,161.17,8.5476]
[1762581294768,0.04585501,161.22,161.18,3.00369391]
[1762581294966,0.86585501,161.22,161.18,3.00369391]
[1762581295681,0.82,161.2,161.18,0.04369391]
[1762581298975,0.82,161.19,161.12,2.96]
[1762581299169,0.82,161.16,161.12,2.96]
[1762581299978,0.86389467,161.16,161.12,3.00071182]
[1762581300770,0.04389467,161.16,161.13,2.96]
[1762581301686,0.86389467,161.16,161.12,0.04071182]
[1762581301881,0.86389467,161.16,161.12,3.00071182]
[1762581305075,0.86389467,161.16,161.12,0.04071182]
[1762581305076,0.82,161.13,161.12,0.04071182]
[1762581305985,0.82,161.13,161.06,3.11]
[1762581306186,1.80958763,161.1,161.06,3.11]
[1762581306387,2.62958763,161.1,161.06,3.11]
[1762581306781,2.67477296,161.1,161.06,3.15106872]
[1762581306986,0.82,161.09,161.06,3.15106872]
[1762581308588,0.04518533,161.1,161.07,3.11]
[1762581309689,0.04518533,161.1,161.08,5.5906]
[1762581309880,0.04518533,161.1,161.09,3.11]
[1762581311484,0.04518533,161.1,161.06,1.85065635]
[1762581311485,1.80958763,161.16,161.13,3.11]
[1762581311989,0.82,161.18,161.13,8.6989]
[1762581312284,0.82,161.18,161.14,3.11]
[1762581312587,0.86262174,161.18,161.14,3.15321715]
[1762581313289,0.86262174,161.18,161.14,8.74181715]
[1762581313789,0.04262174,161.18,161.16,3.11]
[1762581315082,0.04262174,161.18,161.14,3.15321715]
[1762581315083,0.91262174,161.18,161.14,3.15321715]
[1762581316490,0.04262174,161.18,161.14,3.15321715]
[1762581317087,0.04262174,161.18,161.16,3.11]
[1762581320195,0.04262174,161.18,161.15,3.11]
[1762581326190,0.04262174,161.18,161.15,8.6983]
[1762581326390,0.04262174,161.18,161.16,3.11]
[1762581327397,0.04262174,161.18,161.16,8.698]
[1762581327695,0.04262174,161.18,161.17,3.11]
[1762581329997,0.87,161.26,161.2,3.11]
[1762581330193,5.23829025,161.25,161.2,3.11]
[1762581330390,4.36829025,161.24,161.2,3.11]
[1762581330591,4.36829025,161.23,161.2,3.11]
[1762581330793,0.87,161.25,161.2,3.11]
[1762581331091,0.0399974,161.23,161.2,3.15523524]
[1762581332593,0.0399974,161.23,161.21,5.5862]
[1762581332898,0.0399974,161.23,161.22,2.95]
[1762581343707,0.0399974,161.23,161.21,3.06]
[1762581344807,0.0399974,161.23,161.22,8.646]
[1762581345112,4.39182526,161.29,161.23,3.06]
[1762581345298,4.39182526,161.28,161.23,3.06]
[1762581345503,4.39086021,161.27,161.23,3.06]
[1762581346107,4.43544387,161.27,161.24,3.06]
[1762581346405,0.04458366,161.27,161.24,3.06]
[1762581347205,0.04458366,161.27,161.26,3.06]
[1762581350607,0.89458366,161.27,161.23,5.62730099]
[1762581350910,0.04458366,161.27,161.23,3.10180099]
[1762581351113,0.04458366,161.27,161.25,5.5848]
[1762581351315,0.04458366,161.27,161.26,3.06]
[1762581358527,0.04458366,161.27,161.25,5.5848]
[1762581359027,0.89458366,161.27,161.25,5.5848]
[1762581359630,0.89458366,161.27,161.23,8.68730099]
[1762581360022,5.24563768,161.26,161.23,8.68730099]
[1762581360226,0.85,161.26,161.23,8.68730099]
[1762581360534,0.04458366,161.27,161.24,8.6451]
[1762581360834,0.89458366,161.27,161.23,3.10180099]
[1762581361033,4.39339007,161.26,161.23,3.10180099]
[1762581361227,0.89458366,161.27,161.23,0.04180099]
[1762581361228,0.85,161.25,161.23,0.04180099]
[1762581361727,0.04458366,161.27,161.23,3.10180099]
[1762581362034,4.39375249,161.26,161.23,3.10180099]
[1762581362226,4.39375249,161.25,161.23,3.10180099]
[1762581362422,0.89458366,161.27,161.23,8.68740099]
[1762581362627,4.39443263,161.26,161.24,2.92]
[1762581362829,0.04458366,161.27,161.24,2.92]
[1762581363925,0.04458366,161.27,161.24,8.5052]
[1762581364736,0.04458366,161.27,161.23,0.04180099]
[1762581364737,0.04458366,161.27,161.26,2.92]
[1762581364938,4.44337006,161.27,161.26,2.92]
[1762581365129,4.44337006,161.27,161.25,8.5048]
[1762581365436,0.04458366,161.27,161.25,8.5048]
[1762581365837,0.04458366,161.27,161.26,2.92]
[1762581366030,4.44318561,161.27,161.26,2.92]
[1762581367431,4.44318561,161.27,161.24,2.92]
[1762581367741,0.86,161.25,161.23,0.04180099]
[1762581367930,4.3996481,161.24,161.23,0.04180099]
[1762581368431,4.34196313,161.26,161.23,2.96180099]
[1762581368632,0.04458366,161.27,161.23,2.96180099]
[1762581368834,0.86,161.25,161.23,0.04180099]
[1762581369032,4.34103661,161.26,161.23,0.04180099]
[1762581369033,5.20046508,161.24,161.23,0.04180099]
[1762581370643,4.34046508,161.24,161.23,2.96180099]
[1762581370942,4.34324074,161.24,161.23,2.96180099]
[1762581371746,0.90458366,161.27,161.23,2.96180099]
[1762581371941,4.34472042,161.26,161.23,2.96180099]
[1762581372142,4.34472042,161.25,161.23,2.96180099]
[1762581372343,0.04458366,161.27,161.23,2.96180099]
[1762581372647,4.34717663,161.26,161.23,2.96180099]
[1762581372848,4.34717663,161.25,161.23,2.96180099]
[1762581373048,0.04458366,161.27,161.24,8.5053]
[1762581373248,4.34677721,161.26,161.24,2.92]
[1762581373550,4.34677721,161.25,161.24,2.92]
[1762581374141,0.04458366,161.27,161.24,2.92]
[1762581374342,4.34951128,161.26,161.24,2.92]
[1762581374540,0.04458366,161.27,161.24,2.92]
[1762581374853,4.35059413,161.26,161.24,2.92]
[1762581375042,0.04458366,161.27,161.23,0.04180099]
[1762581375043,0.04458366,161.27,161.26,2.92]
[1762581375243,4.39523446,161.27,161.26,2.92]
[1762581376151,0.04458366,161.27,161.26,2.92]
[1762581376352,4.39643744,161.27,161.26,2.92]
[1762581376545,0.04458366,161.27,161.26,2.92]
[1762581377352,4.39646217,161.27,161.26,2.92]
[1762581378252,4.39659551,161.27,161.26,2.92]
[1762581388949,4.40154807,161.27,161.26,2.92]
[1762581391555,4.40154807,161.27,161.25,5.585]
[1762581391556,0.86,161.26,161.25,5.585]
[1762581391753,4.35696441,161.26,161.25,5.585]
[1762581394365,4.35696441,161.26,161.25,8.465]
[1762581395067,4.35696441,161.26,161.25,5.585]
[1762581396962,4.35696441,161.26,161.24,2.88]
[1762581397166,5.21696441,161.25,161.23,0.04180099]
[1762581397460,5.22302315,161.24,161.23,0.04180099]
[1762581397861,4.36302315,161.24,161.23,2.92180099]
[1762581398058,0.90458366,161.27,161.23,2.92180099]
[1762581398262,4.35365024,161.26,161.23,2.92180099]
[1762581398459,0.90458366,161.27,161.23,2.92180099]
[1762581398460,4.35365024,161.25,161.24,5.5853]
[1762581399468,0.04458366,161.27,161.26,8.4647]
[1762581399769,4.39743083,161.27,161.26,8.4647]
[1762581401169,4.39743083,161.27,161.26,5.5847]
[1762581401970,4.39743083,161.27,161.26,8.4647]
[1762581403969,7.60018388,161.36,161.32,5.5826]
[1762581403970,0.86,161.35,161.32,5.5826]
[1762581404474,0.86,161.35,161.33,5.582]
[1762581404676,0.86,161.37,161.33,8.682]
[1762581404862,0.86,161.37,161.33,5.582]
[1762581405175,0.90177436,161.37,161.33,5.62315597]
[1762581407272,0.04177436,161.37,161.34,3.05]
[1762581407470,0.90177436,161.37,161.34,3.05]
[1762581407780,0.90177436,161.37,161.33,0.04115597]
[1762581408575,0.86,161.36,161.33,0.04115597]
[1762581414980,0.86,161.36,161.33,5.62325597]
[1762581415678,0.86,161.36,161.33,0.04115597]
[1762581420585,0.86,161.34,161.33,0.04115597]
[1762581423384,0.86,161.34,161.26,3.06]
[1762581423589,0.86,161.32,161.26,3.06]
[1762581424090,0.86,161.34,161.28,3.06]
[1762581424786,0.86,161.34,161.3,8.6431]
[1762581424982,0.04242298,161.31,161.3,8.6431]
[1762581425383,0.04242298,161.31,161.29,3.1040848]
[1762581425583,0.90242298,161.31,161.29,3.1040848]
[1762581426191,0.90242298,161.31,161.29,0.0440848]
[1762581427386,2.70781963,161.31,161.29,0.0440848]
[1762581427586,0.86,161.3,161.29,0.0440848]
[1762581432797,0.04242298,161.31,161.29,3.1040848]
[1762581433194,0.90242298,161.31,161.29,3.1040848]
[1762581434088,0.90242298,161.31,161.29,8.6875848]
[1762581435095,0.90242298,161.31,161.29,0.0440848]
[1762581436186,0.04242298,161.31,161.29,3.1040848]
[1762581436895,0.86,161.37,161.29,3.1040848]
[1762581437094,0.86,161.37,161.33,5.582]
[1762581437297,0.86,161.37,161.34,3.06]
[1762581437893,0.90754561,161.37,161.34,3.10738003]
[1762581438500,0.04754561,161.37,161.35,3.06]
[1762581439998,0.04754561,161.37,161.35,8.6413]
[1762581440199,0.04754561,161.37,161.36,3.06]
[1762581441299,0.90754561,161.37,161.34,3.10738003]
[1762581441495,0.90754561,161.37,161.34,0.04738003]
[1762581442601,0.86,161.35,161.28,3.06]
[1762581443402,0.86,161.34,161.28,8.6437]
[1762581443807,0.86,161.32,161.29,0.04739036]
[1762581444607,0.86,161.31,161.29,0.04739036]
[1762581446708,0.86,161.3,161.29,0.04739036]
[1762581452412,0.86,161.27,161.22,2.91]
[1762581453706,0.86,161.27,161.24,2.91]
[1762581453707,0.04610549,161.26,161.24,2.91]
[1762581455109,0.90610549,161.26,161.23,2.95231641]
[1762581455607,0.90610549,161.26,161.23,0.04231641]
[1762581456014,0.86,161.22,161.17,2.91]
[1762581456908,5.47890618,161.26,161.17,2.91]
[1762581457111,0.04092405,161.21,161.19,2.91]
[1762581457707,0.04092405,161.21,161.19,8.4968]
[1762581457911,0.04092405,161.21,161.2,2.91]
[1762581463925,0.86,161.28,161.23,2.88]
[1762581464118,5.49256451,161.27,161.23,2.88]
[1762581464323,7.43161855,161.31,161.23,2.88]
[1762581464324,4.63256451,161.26,161.23,2.88]
[1762581464524,0.86,161.3,161.24,5.5852]
[1762581464724,0.86,161.3,161.24,8.4652]
[1762581464725,0.86,161.28,161.24,8.4652]
[1762581465023,4.63230313,161.27,161.25,2.88]
[1762581465216,0.90117909,161.28,161.25,2.88]
[1762581465418,4.63295759,161.27,161.25,2.88]
[1762581465618,0.90117909,161.28,161.25,2.88]
[1762581465827,4.63295494,161.27,161.26,2.88]
[1762581466125,0.04117909,161.28,161.26,2.88]
[1762581467622,0.86,161.26,161.24,0.04080513]
[1762581467832,4.63303329,161.25,161.24,0.04080513]
[1762581468722,0.86,161.26,161.24,0.04080513]
[1762581469123,4.63401099,161.25,161.24,0.04080513]
[1762581469635,4.63389398,161.25,161.24,0.04080513]
[1762581471932,5.49389398,161.25,161.24,0.04080513]
[1762581474739,5.49389398,161.25,161.19,8.4669]
[1762581474941,0.86,161.23,161.19,8.4669]
[1762581475136,5.49389398,161.22,161.19,8.4669]
[1762581475336,0.86,161.22,161.19,8.4669]
[1762581475741,0.90479291,161.22,161.19,8.51288644]
[1762581477642,0.90479291,161.22,161.19,5.63288644]
[1762581479035,0.90479291,161.22,161.19,8.51288644]
[1762581480144,0.86,161.2,161.19,0.04598644]
[1762581481440,4.63245991,161.21,161.19,5.63288644]
[1762581481740,0.04479291,161.22,161.2,2.88]
[1762581482133,0.04479291,161.22,161.2,8.4665]
[1762581482337,0.04479291,161.22,161.21,3.16]
[1762581483038,0.86,161.21,161.19,0.04598644]
[1762581483637,5.49530111,161.2,161.19,0.04598644]
[1762581485445,4.63530111,161.2,161.19,0.04598644]
[1762581486237,4.63530111,161.2,161.19,3.20598644]
[1762581486446,0.04479291,161.22,161.19,3.20598644]
[1762581486842,0.04479291,161.22,161.2,8.7467]
[1762581487144,4.64561839,161.21,161.2,8.7467]
[1762581487347,5.50561839,161.21,161.19,0.04598644]
[1762581487549,0.04479291,161.22,161.19,3.20598644]
[1762581487743,4.64567044,161.21,161.19,3.20598644]
[1762581487941,0.90479291,161.22,161.19,3.20598644]
[1762581488145,4.65503116,161.21,161.19,3.20598644]
[1762581488444,0.90479291,161.22,161.19,3.20598644]
[1762581488643,5.51680245,161.21,161.19,0.04598644]
[1762581488844,4.65611035,161.2,161.19,0.04598644]
[1762581489951,4.65611035,161.2,161.19,3.20598644]
[1762581497763,0.04479291,161.22,161.2,8.7467]
[1762581497955,4.50657043,161.21,161.2,8.7467]
[1762581503963,0.04479291,161.22,161.21,3.16]
[1762581504267,4.55618338,161.22,161.21,3.16]
[1762581506070,1.80658694,161.28,161.23,3.16]
[1762581506071,0.86,161.27,161.23,3.16]
[1762581506270,4.62926534,161.26,161.23,3.16]
[1762581506570,0.86,161.27,161.25,5.5849]
[1762581506764,4.6297442,161.26,161.25,5.5849]
[1762581507066,0.03962481,161.27,161.25,3.16]
[1762581508064,0.03962481,161.27,161.26,5.5845]
[1762581508860,0.03962481,161.27,161.26,8.7445]
[1762581509257,0.86,161.33,161.31,5.5827]
[1762581510163,0.86,161.35,161.32,5.5823]
[1762581510362,1.80658694,161.36,161.32,5.5823]
[1762581510363,5.53209682,161.34,161.32,5.5823]
[1762581510561,0.90433102,161.34,161.32,5.5823]
[1762581510765,5.53209682,161.34,161.32,5.5823]
[1762581510963,0.90433102,161.34,161.32,5.5823]
[1762581511161,5.53209682,161.34,161.31,3.16]
[1762581511470,0.86,161.32,161.3,0.04108421]
[1762581511662,5.4877658,161.32,161.3,0.04108421]
[1762581512062,0.86,161.32,161.3,0.04108421]
[1762581512770,0.86,161.32,161.3,5.62418421]
[1762581512969,2.66658694,161.33,161.3,3.07108421]
[1762581513173,0.86,161.32,161.3,0.04108421]
[1762581513466,0.86,161.3,161.23,3.03]
[1762581513674,0.86,161.29,161.23,3.03]
[1762581514672,0.90003604,161.28,161.25,3.03]
[1762581515073,0.90003604,161.28,161.25,8.6148]
[1762581515869,0.90003604,161.28,161.24,0.04324873]
[1762581516072,0.90003604,161.28,161.24,3.07324873]
[1762581516771,0.90003604,161.28,161.25,8.6148]
[1762581517362,0.90003604,161.28,161.26,3.03]
[1762581517566,0.90003604,161.28,161.26,8.6144]
[1762581517768,0.04003604,161.28,161.27,3.03]
[1762581528780,0.90003604,161.28,161.26,5.5844]
[1762581530285,0.90003604,161.28,161.26,8.6144]
[1762581530479,0.04003604,161.28,161.27,3.03]
[1762581532988,0.04003604,161.28,161.26,8.6144]
[1762581535795,0.04003604,161.28,161.27,3.03]
[1762581542190,2.14003604,161.28,161.24,0.00324873]
[1762581542392,1.80658694,161.25,161.14,11.55712772]
[1762581542695,0.82,161.21,161.16,3.12]
[1762581543095,0.82,161.24,161.16,3.12]
[1762581543294,1.80658694,161.24,161.19,3.12]
[1762581543497,0.04120751,161.22,161.19,3.12]
[1762581543688,0.04120751,161.22,161.19,3.15953659]
[1762581543890,1.80658694,161.28,161.21,3.12]
[1762581544592,1.80658694,161.28,161.23,3.12]
[1762581544785,1.80658694,161.31,161.23,3.12]
[1762581544988,1.80658694,161.31,161.26,3.12]
[1762581544989,0.04534377,161.29,161.26,3.12]
[1762581546000,0.04534377,161.29,161.26,8.7046]
[1762581546199,0.04534377,161.29,161.27,3.12]
[1762581547797,4.4991409,161.28,161.27,3.12]
[1762581548693,0.04534377,161.29,161.27,3.12]
[1762581550398,0.04534377,161.29,161.28,3.12]
[1762581550598,4.5488363,161.29,161.28,3.12]
[1762581551605,0.04534377,161.29,161.28,3.12]
[1762581554211,4.90918168,161.33,161.31,3.12]
[1762581554507,4.50559449,161.32,161.31,3.12]
[1762581554712,4.50559449,161.32,161.31,8.7026]
[1762581555607,0.9,161.31,161.16,15.19945646]
[1762581555809,2.70658694,161.29,161.26,3.12]
[1762581556015,1.80658694,161.29,161.26,3.12]
[1762581556317,4.51320833,161.28,161.26,3.12]
[1762581556518,2.70658694,161.32,161.26,3.12]
[1762581556707,2.70658694,161.32,161.2,1.80658694]
[1762581556708,10.35762394,161.31,161.28,3.12]
[1762581557018,9.41748092,161.3,161.28,3.12]
[1762581557213,0.94147469,161.31,161.28,3.12]
[1762581557214,4.51578313,161.29,161.28,3.12]
[1762581558014,9.41832404,161.29,161.28,3.12]
[1762581558211,4.51578313,161.29,161.28,3.12]
[1762581558616,9.41828714,161.29,161.28,3.12]
[1762581559816,0.04147469,161.31,161.28,3.12]
[1762581561014,0.04147469,161.31,161.3,3.12]
[1762581563621,0.94147469,161.31,161.27,0.04504861]
[1762581563821,0.94147469,161.31,161.27,3.16504861]
[1762581564019,5.72481526,161.3,161.27,3.16504861]
[1762581564223,0.9,161.3,161.27,3.16504861]
[1762581564523,0.94147469,161.31,161.27,3.16504861]
[1762581564723,4.82457009,161.3,161.27,3.16504861]
[1762581564919,0.94147469,161.31,161.27,3.16504861]
[1762581565118,4.82493388,161.3,161.27,3.16504861]
[1762581565311,0.94147469,161.31,161.27,3.16504861]
[1762581565517,4.82498473,161.3,161.27,3.16504861]
[1762581565717,0.94147469,161.31,161.27,3.16504861]
[1762581565921,4.82484945,161.3,161.27,3.16504861]
[1762581566118,0.94147469,161.31,161.27,3.16504861]
[1762581566314,5.72523276,161.3,161.27,3.16504861]
[1762581566514,0.9,161.3,161.27,3.16504861]
[1762581568619,0.04147469,161.31,161.27,3.16504861]
[1762581569227,0.04147469,161.31,161.29,3.12]
[1762581571830,4.45592746,161.3,161.29,3.12]
[1762581575036,0.04147469,161.31,161.29,8.7034]
[1762581575225,0.04147469,161.31,161.3,3.02]
[1762581575424,4.49723232,161.31,161.3,3.02]
[1762581576129,10.5609124,161.31,161.27,0.04504861]
[1762581576427,2.81961252,161.28,161.1,15.19945646]
[1762581576634,0.85,161.25,161.17,3.02]
[1762581576821,9.27943771,161.24,161.17,3.02]
[1762581577029,4.45575763,161.23,161.17,3.02]
[1762581577228,4.65993946,161.27,161.19,3.02]
[1762581577423,5.74269753,161.3,161.19,3.02]
[1762581577424,4.4524979,161.26,161.19,3.02]
[1762581577621,2.81961252,161.3,161.19,3.02]
[1762581577927,4.45151733,161.29,161.23,3.02]
[1762581578227,4.65885914,161.32,161.23,3.02]
[1762581578431,0.9,161.3,161.23,3.02]
[1762581578628,2.81961252,161.32,161.26,0.04177962]
[1762581578629,0.9,161.28,161.26,0.04177962]
[1762581578829,0.0397985,161.29,161.26,3.06177962]
[1762581579133,4.40032782,161.28,161.26,3.06177962]
[1762581579332,0.9397985,161.29,161.26,0.04177962]
[1762581579529,4.40168972,161.28,161.26,0.04177962]
[1762581579729,0.9397985,161.29,161.26,0.04177962]
[1762581579927,4.40143443,161.28,161.26,3.06177962]
[1762581580122,4.40119665,161.27,161.26,0.04177962]
[1762581581531,0.0397985,161.29,161.26,3.06177962]
[1762581582626,0.0397985,161.29,161.27,2.95]
[1762581583128,0.0397985,161.29,161.26,5.62637962]
[1762581583129,0.0397985,161.29,161.28,8.5339]